bitfinex-derivatives/quotes_SOLF0:USTF0_20241222
["timestamp","ask_amount","ask_price","bid_price","bid_amount"]
[1734894985087,3.0,181.11,180.98,3.0]
[1734894985499,3.0,181.11,181.01,2.7643]
[1734894986194,34.39332222,181.12,181.02,2.7642]
[1734894986388,3.0,181.1,181.02,2.7642]
[1734894986584,34.39332222,181.12,180.98,3.0]
[1734894986896,3.0,181.11,180.98,3.0]
[1734894987291,37.39332222,181.11,180.98,3.0]
[1734894988190,37.39332222,181.11,180.99,2.7646]
[1734894988490,37.39332222,181.11,180.98,3.0]
[1734894988696,34.39332222,181.08,180.94,2.7653]
[1734894988897,1.625,181.07,180.93,7.9171]
[1734894989096,3.0,181.06,180.93,7.9171]
[1734894989893,3.0,181.06,180.99,2.7645]
[1734894992703,3.0,181.06,180.97,34.39332222]
[1734894993096,57.54,181.13,181.04,2.7638]
[1734894993305,3.0,181.12,181.04,2.7638]
[1734894994501,3.0,181.12,181.0,34.39332222]
[1734894994707,3.0,181.12,180.99,2.7646]
[1734894994899,3.0,181.12,180.97,34.39332222]
[1734894995100,3.0,181.12,181.0,2.7645]
[1734894996196,3.0,181.12,180.97,34.39332222]
[1734894996900,3.0,181.12,181.02,2.7642]
[1734894997903,3.0,181.12,180.97,34.39332222]
[1734894998903,3.0,181.12,181.0,2.7645]
[1734894999806,3.0,181.12,180.97,34.39332222]
[1734895000005,1.7426,181.14,181.0,34.39332222]
[1734895000208,3.0,181.13,181.07,2.7634]
[1734895000702,1.7426,181.14,181.07,2.7634]
[1734895001205,1.7426,181.14,181.08,2.7633]
[1734895001808,34.39332222,181.2,181.06,34.39332222]
[1734895002009,3.0,181.17,181.06,34.39332222]
[1734895002606,3.0,181.17,181.1,2.7628]
[1734895002809,34.39332222,181.23,181.07,3.0]
[1734895003104,34.39332222,181.23,181.12,2.7625]
[1734895003308,34.39332222,181.23,181.09,34.39332222]
[1734895003309,3.0,181.23,181.09,34.39332222]
[1734895003508,3.0,181.23,181.1,5.1083]
[1734895004406,3.0,181.23,181.12,2.7625]
[1734895004612,3.0,181.23,181.1,5.1083]
[1734895005111,3.0,181.23,181.13,2.7624]
[1734895005310,7.9911,181.24,181.12,37.39332222]
[1734895005609,34.39332222,181.35,181.18,2.7616]
[1734895005610,3.0,181.25,181.18,2.7616]
[1734895005804,3.0,181.25,181.12,37.39332222]
[1734895006001,3.0,181.28,181.15,34.39332222]
[1734895006504,88.08273978,181.32,181.18,34.39332222]
[1734895006704,88.08273978,181.32,181.21,34.39332222]
[1734895006911,3.0,181.32,181.21,34.39332222]
[1734895007213,3.3474,181.34,181.21,34.39332222]
[1734895007713,1.7213,181.34,181.21,34.39332222]
[1734895008108,3.0,181.35,181.21,34.39332222]
[1734895008412,3.0,181.35,181.26,2.7604]
[1734895008613,3.0,181.35,181.21,34.39332222]
[1734895008815,37.39332222,181.35,181.21,34.39332222]
[1734895009016,37.39332222,181.35,181.23,2.7608]
[1734895009916,3.0,181.35,181.21,34.39332222]
[1734895010107,3.0,181.35,181.24,2.7607]
[1734895010417,3.0,181.35,181.21,34.39332222]
[1734895011113,37.39332222,181.35,181.2,2.7613]
[1734895011311,3.3836,181.34,181.19,7.9148]
[1734895011712,3.3836,181.34,181.23,2.7608]
[1734895012013,3.3836,181.34,181.19,7.9148]
[1734895012312,3.3836,181.34,181.24,2.7608]
[1734895012819,3.3836,181.34,181.22,2.761]
[1734895013012,3.3836,181.34,181.19,7.9148]
[1734895013420,3.3836,181.34,181.21,34.39332222]
[1734895013816,34.39332222,181.38,181.24,34.39332222]
[1734895014010,2.92,181.37,181.25,2.92]
[1734895014216,2.92,181.38,181.27,34.39332222]
[1734895014417,2.92,181.38,181.28,5.0487]
[1734895014614,2.92,181.38,181.34,2.7593]
[1734895014820,2.92,181.38,181.28,5.0487]
[1734895014821,2.92,181.41,181.31,2.92]
[1734895015317,2.92,181.41,181.34,2.7593]
[1734895015720,2.92,181.41,181.33,2.7594]
[1734895015912,2.92,181.41,181.31,2.92]
[1734895016720,2.92,181.41,181.33,2.7594]
[1734895017121,2.92,181.41,181.31,2.92]
[1734895017324,2.92,181.41,181.34,2.7592]
[1734895017820,2.92,181.41,181.31,2.92]
[1734895018014,2.92,181.41,181.33,2.7594]
[1734895018220,2.92,181.41,181.31,2.92]
[1734895018620,2.92,181.41,181.3,2.7598]
[1734895019014,2.92,181.41,181.29,2.7601]
[1734895019212,4.9235,181.4,181.28,5.0487]
[1734895019621,4.9235,181.4,181.29,2.76]
[1734895021119,4.9235,181.4,181.23,34.39332222]
[1734895021329,4.9235,181.4,181.24,2.92]
[1734895021330,34.39332222,181.38,181.24,2.92]
[1734895021521,34.39332222,181.38,181.23,37.31332222]
[1734895021725,4.9235,181.4,181.26,34.39332222]
[1734895022022,4.9235,181.4,181.27,4.9011]
[1734895022222,4.9235,181.4,181.28,2.92]
[1734895023221,4.9235,181.4,181.3,2.7599]
[1734895026325,4.9235,181.4,181.27,4.9011]
[1734895026525,34.39332222,181.38,181.27,4.9011]
[1734895027628,34.39332222,181.38,181.27,7.6614]
[1734895028430,34.39332222,181.38,181.2,34.39332222]
[1734895028631,4.9235,181.4,181.23,34.39332222]
[1734895028830,2.92,181.39,181.26,34.39332222]
[1734895029029,2.92,181.39,181.29,2.7599]
[1734895029929,2.92,181.39,181.3,2.7599]
[1734895030126,4.9235,181.4,181.29,37.31332222]
[1734895030431,2.92,181.46,181.36,2.759]
[1734895030626,2.92,181.46,181.35,2.92]
[1734895030821,2.92,181.46,181.35,37.31332222]
[1734895031025,3.3278,181.47,181.35,37.31332222]
[1734895031225,2.92,181.48,181.35,37.31332222]
[1734895031529,2.92,181.51,181.38,34.39332222]
[1734895031729,2.92,181.51,181.41,2.7581]
[1734895031927,2.92,181.53,181.41,34.39332222]
[1734895032131,2.92,181.53,181.42,4.3525]
[1734895032727,2.92,181.53,181.42,1.5944]
[1734895033230,3.3292,181.54,181.42,1.5944]
[1734895033426,2.92,181.53,181.42,1.5944]
[1734895033933,0.22861,181.49,181.46,2.7574]
[1734895034832,0.22861,181.49,181.45,2.7576]
[1734895035226,0.22861,181.49,181.42,1.5944]
[1734895035428,0.22861,181.49,181.48,2.7572]
[1734895035827,5.0784,181.61,181.47,34.39332222]
[1734895036028,2.92,181.6,181.47,34.39332222]
[1734895036525,2.92,181.6,181.51,2.7566]
[1734895036728,2.92,181.6,181.5,2.92]
[1734895037329,2.92,181.6,181.47,37.31332222]
[1734895037730,2.92,181.6,181.48,2.7572]
[1734895038133,2.92,181.6,181.47,37.31332222]
[1734895038332,2.92,181.6,181.5,2.7569]
[1734895039028,2.92,181.6,181.51,2.7566]
[1734895040134,2.92,181.6,181.49,2.7569]
[1734895040932,2.92,181.6,181.46,8.9956]
[1734895041132,1.6188,181.59,181.46,6.2381]
[1734895041633,1.6188,181.59,181.49,2.757]
[1734895042534,1.6188,181.59,181.46,3.3181]
[1734895042735,3.4146,181.58,181.46,3.3181]
[1734895043735,3.4146,181.58,181.44,34.39332222]
[1734895043937,3.4146,181.58,181.45,2.7576]
[1734895044338,3.4146,181.58,181.44,37.15112222]
[1734895044831,3.4146,181.58,181.41,34.39332222]
[1734895045030,34.39332222,181.56,181.39,5.0044]
[1734895045228,2.88,181.55,181.39,5.0044]
[1734895045438,2.88,181.55,181.44,2.7577]
[1734895045639,2.88,181.55,181.42,2.88]
[1734895046033,2.88,181.54,181.46,2.7575]
[1734895046237,2.88,181.54,181.42,23.88409343]
[1734895047030,21.00409343,181.59,181.42,23.88409343]
[1734895047235,2.88,181.58,181.42,23.88409343]
[1734895047937,2.88,181.58,181.45,2.7575]
[1734895048538,2.88,181.58,181.46,2.7575]
[1734895048734,2.88,181.58,181.39,5.0044]
[1734895048939,21.00409343,181.56,181.39,7.8844]
[1734895049235,3.2502,181.55,181.39,5.0044]
[1734895050242,34.14915137,181.54,181.39,5.0044]
[1734895050443,2.88,181.53,181.4,2.7584]
[1734895052039,34.14915137,181.54,181.39,5.0044]
[1734895052240,2.88,181.53,181.39,5.0044]
[1734895052935,2.88,181.53,181.4,2.7584]
[1734895054144,7.01821628,181.53,181.36,2.88]
[1734895054339,34.14915137,181.51,181.35,34.14915137]
[1734895054540,34.14915137,181.51,181.33,2.88]
[1734895054943,34.14915137,181.48,181.33,2.88]
[1734895055145,4.5327,181.47,181.35,34.14915137]
[1734895055340,2.88,181.47,181.36,1.6017]
[1734895055844,2.88,181.47,181.37,3.324]
[1734895056045,2.88,181.47,181.38,34.14915137]
[1734895056446,2.88,181.47,181.38,37.02915137]
[1734895056941,2.88,181.47,181.4,2.7584]
[1734895059044,2.88,181.47,181.39,2.7585]
[1734895059251,2.88,181.47,181.3,34.14915137]
[1734895059446,34.14915137,181.45,181.29,2.88]
[1734895059651,34.14915137,181.45,181.32,2.7596]
[1734895059941,34.14915137,181.42,181.28,5.1965]
[1734895060146,2.88,181.41,181.28,5.1965]
[1734895060441,34.14915137,181.39,181.28,3.4514]
[1734895060742,34.14915137,181.39,181.24,4.6421]
[1734895060743,1.6021,181.38,181.24,4.6421]
[1734895060938,1.6021,181.38,181.28,2.7602]
[1734895061342,1.6021,181.38,181.25,2.88]
[1734895061546,1.6021,181.38,181.29,2.76]
[1734895061845,1.6021,181.38,181.25,2.88]
[1734895062049,2.88,181.38,181.25,2.88]
[1734895062244,2.88,181.38,181.28,34.14915137]
[1734895062543,2.88,181.41,181.28,34.14915137]
[1734895062738,2.88,181.41,181.33,2.7594]
[1734895063142,34.14915137,181.44,181.31,2.7598]
[1734895063337,2.88,181.43,181.3,2.88]
[1734895064141,2.88,181.43,181.32,2.7595]
[1734895064338,2.88,181.43,181.3,2.88]
[1734895064946,34.14915137,181.44,181.3,2.88]
[1734895065143,2.88,181.43,181.3,2.88]
[1734895065445,2.88,181.42,181.3,2.88]
[1734895065638,2.88,181.42,181.34,2.7593]
[1734895066042,2.88,181.42,181.3,2.88]
[1734895066644,2.88,181.42,181.31,2.7596]
[1734895067838,2.88,181.42,181.32,2.7596]
[1734895071245,2.88,181.42,181.3,2.88]
[1734895071441,2.88,181.42,181.33,2.7594]
[1734895071643,2.9,181.41,181.33,2.7594]
[1734895072946,1.6021,181.45,181.31,21.03461035]
[1734895073347,4.5021,181.45,181.32,4.9237]
[1734895073548,25.53671035,181.45,181.3,2.88]
[1734895073751,21.03461035,181.42,181.3,2.88]
[1734895073945,21.03461035,181.42,181.31,2.7597]
[1734895074654,21.03461035,181.42,181.3,2.88]
[1734895074849,21.03461035,181.42,181.32,2.7596]
[1734895075250,4.5021,181.45,181.35,2.7591]
[1734895075251,25.53671035,181.45,181.35,2.7591]
[1734895075451,25.53671035,181.45,181.3,2.88]
[1734895075452,4.5021,181.45,181.3,2.88]
[1734895075646,4.5021,181.45,181.32,21.03461035]
[1734895076452,4.5021,181.45,181.36,2.759]
[1734895078851,25.53671035,181.45,181.31,2.9]
[1734895079755,2.9,181.44,181.35,2.7591]
[1734895079950,2.9,181.44,181.31,2.9]
[1734895080453,21.03461035,181.42,181.27,4.9237]
[1734895080659,21.03461035,181.39,181.27,4.9237]
[1734895080954,6.2463,181.38,181.27,6.0728]
[1734895081156,7.9638,181.38,181.27,3.3125]
[1734895081548,2.9,181.38,181.27,3.3125]
[1734895081754,2.9,181.39,181.27,3.3125]
[1734895082154,2.9,181.39,181.34,2.7592]
[1734895083155,2.9,181.39,181.3,2.9]
[1734895085254,2.9,181.39,181.33,2.7594]
[1734895086051,2.9,181.39,181.32,2.7596]
[1734895086456,2.9,181.39,181.3,2.9]
[1734895086661,2.9,181.39,181.31,2.7597]
[1734895086960,2.9,181.39,181.3,2.9]
[1734895088062,2.9,181.39,181.34,2.7592]
[1734895089362,2.9,181.39,181.36,2.7589]
[1734895089557,2.9,181.44,181.32,21.03461035]
[1734895089754,2.9,181.46,181.32,21.03461035]
[1734895090059,2.9,181.46,181.39,2.7584]
[1734895090962,2.9,181.46,181.35,2.9]
[1734895091465,2.9,181.46,181.36,3.4498]
[1734895091656,2.9,181.45,181.32,2.9]
[1734895091863,23.93461035,181.44,181.31,1.7045]
[1734895092061,4.6574,181.43,181.31,4.4643]
[1734895092366,4.6574,181.43,181.31,2.7598]
[1734895092572,3.3097,181.42,181.31,2.7598]
[1734895092865,23.93461035,181.41,181.27,5.1238]
[1734895093264,21.03461035,181.38,181.27,2.7603]
[1734895096565,21.03461035,181.38,181.25,2.7606]
[1734895096768,21.03461035,181.35,181.21,5.1132]
[1734895096963,7.7914,181.34,181.18,92.77679456]
[1734895097169,7.7914,181.34,181.22,2.7612]
[1734895099976,7.7914,181.34,181.24,21.03461035]
[1734895100364,7.7914,181.34,181.27,2.7604]
[1734895100563,2.9,181.34,181.25,3.3015]
[1734895100973,2.9,181.34,181.29,2.76]
[1734895101169,2.9,181.34,181.24,24.36761035]
[1734895102172,2.9,181.34,181.28,2.7601]
[1734895102575,2.9,181.34,181.24,24.36761035]
[1734895102770,5.0175,181.4,181.27,21.03461035]
[1734895102971,5.0175,181.4,181.28,4.6204]
[1734895103171,2.9,181.39,181.28,4.6204]
[1734895103568,5.0175,181.4,181.28,4.6204]
[1734895103876,2.9,181.41,181.3,21.03461035]
[1734895104070,9.29366408,181.46,181.36,2.759]
[1734895104275,2.9,181.45,181.36,2.759]
[1734895105975,5.1546,181.46,181.37,2.7588]
[1734895106276,2.9,181.44,181.33,2.9]
[1734895106879,2.9,181.44,181.37,2.7587]
[1734895108076,2.9,181.44,181.3,21.03461035]
[1734895108077,2.9,181.44,181.34,2.7593]
[1734895108284,23.93461035,181.44,181.34,2.7593]
[1734895108482,23.93461035,181.44,181.28,4.6204]
[1734895108684,36.25891922,181.44,181.29,2.76]
[1734895108883,4.1394733,181.43,181.29,2.76]
[1734895109383,23.93461035,181.44,181.28,1.7204]
[1734895109779,46.45588025,181.44,181.28,1.7204]
[1734895109985,4.1394733,181.43,181.28,1.7204]
[1734895110376,23.93461035,181.44,181.28,1.7204]
[1734895110687,23.93461035,181.44,181.28,4.4806]
[1734895110884,36.24989298,181.44,181.28,4.4806]
[1734895111080,4.1394733,181.43,181.28,4.4806]
[1734895111281,23.93461035,181.44,181.28,4.4806]
[1734895111683,46.44289645,181.44,181.28,4.4806]
[1734895111882,4.1394733,181.43,181.28,4.4806]
[1734895112182,21.03461035,181.41,181.28,1.7204]
[1734895112381,21.03461035,181.41,181.24,3.333]
[1734895112579,21.03461035,181.35,181.2,1.5969]
[1734895112775,4.1394733,181.41,181.2,1.5969]
[1734895112776,21.03461035,181.32,181.2,1.5969]
[1734895112980,2.9,181.31,181.2,1.5969]
[1734895113287,21.03461035,181.29,181.19,89.87679456]
[1734895113487,21.03461035,181.29,181.18,1.6501]
[1734895113786,21.03461035,181.29,181.14,76.60596387]
[1734895114178,17.21523393,181.31,181.14,76.60596387]
[1734895114179,34.24998902,181.27,181.14,76.60596387]
[1734895114479,4.6341,181.26,181.14,76.60596387]
[1734895114676,2.9,181.25,181.14,76.60596387]
[1734895115384,2.9,181.25,181.07,34.24998902]
[1734895115385,34.24998902,181.24,181.07,34.24998902]
[1734895115584,34.24998902,181.24,181.08,2.9]
[1734895115884,34.24998902,181.21,181.07,39.30238902]
[1734895116082,2.9,181.2,181.07,5.0524]
[1734895116985,34.24998902,181.18,180.94,89.87679456]
[1734895117179,34.24998902,181.18,181.0,37.01438902]
[1734895117382,1.7125,181.17,181.0,39.91438902]
[1734895117685,34.24998902,181.15,181.0,2.7644]
[1734895117884,34.24998902,181.12,180.94,89.87679456]
[1734895118080,2.9,181.11,180.96,34.24998902]
[1734895118284,2.9,181.11,180.97,1.6555]
[1734895118481,2.9,181.11,180.87,89.87679456]
[1734895118685,3.2744,181.14,180.97,34.24998902]
[1734895118988,3.2744,181.14,180.98,1.6555]
[1734895119187,2.9,181.13,180.98,1.6555]
[1734895119987,2.9,181.13,180.98,4.4202]
[1734895120788,2.9,181.13,180.98,1.6555]
[1734895121085,34.24998902,181.12,180.98,1.6555]
[1734895122492,2.9,181.11,180.98,1.6555]
[1734895123298,6.1744,181.14,181.0,34.24998902]
[1734895123592,6.1744,181.14,181.01,6.1992]
[1734895123991,6.1744,181.14,181.01,8.9635]
[1734895124193,6.1744,181.14,181.01,6.1992]
[1734895124890,34.24998902,181.12,180.98,4.5555]
[1734895125594,34.24998902,181.09,180.98,1.6555]
[1734895125788,2.9,181.08,180.98,1.6555]
[1734895126603,34.24998902,181.09,180.98,1.6555]
[1734895126800,34.24998902,181.12,180.98,1.6555]
[1734895127008,2.9,181.1,180.98,1.6555]
[1734895127505,2.9,181.1,180.98,4.4202]
[1734895131305,34.24998902,181.09,180.92,34.24998902]
[1734895131608,35.90828902,181.09,180.93,4.5938]
[1734895132607,35.90828902,181.09,180.93,1.7538]
[1734895132808,34.24998902,181.06,180.93,1.7538]
[1734895133108,34.24998902,181.03,180.91,3.4422]
[1734895134101,3.4291,181.05,180.92,2.84]
[1734895134306,2.84,181.06,180.92,38.68848902]
[1734895135411,2.84,181.06,180.96,2.7651]
[1734895135603,2.84,181.06,180.97,2.84]
[1734895137111,2.84,181.06,180.92,1.5985]
[1734895137112,37.08998902,181.06,180.92,1.5985]
[1734895137306,34.24998902,181.03,180.92,1.5985]
[1734895138810,34.24998902,181.03,180.91,3.4422]
[1734895139310,34.24998902,181.0,180.85,2.7667]
[1734895139513,4.5191,180.99,180.86,2.84]
[1734895142713,34.24998902,180.97,180.85,3.3841]
[1734895142909,34.24998902,180.94,180.85,3.3841]
[1734895143111,2.84,180.93,180.83,0.32797]
[1734895147212,34.24998902,180.91,180.83,0.32797]
[1734895148017,1.6014,180.9,180.83,0.32797]
[1734895150020,2.86,180.89,180.83,0.32797]
[1734895151623,1.7095,180.88,180.83,0.32797]
[1734895152014,37.55048902,180.88,180.7,2.769]
[1734895152219,34.24998902,180.85,180.7,2.769]
[1734895152421,2.86,180.84,180.69,37.10998902]
[1734895152723,2.86,180.84,180.69,39.87918902]
[1734895153222,2.86,180.84,180.69,34.24998902]
[1734895153426,34.24998902,180.82,180.69,2.86]
[1734895153619,34.24998902,180.82,180.68,5.0237]
[1734895155524,34.24998902,180.79,180.68,5.0237]
[1734895155724,2.86,180.78,180.68,5.0237]
[1734895156320,2.86,180.78,180.68,1.5965]
[1734895156524,6.2502,180.78,180.68,1.5965]
[1734895156820,3.3902,180.78,180.68,1.5965]
[1734895157027,2.86,180.81,180.68,1.5965]
[1734895157319,2.86,180.81,180.69,34.24998902]
[1734895157624,2.86,180.81,180.7,5.6291]
[1734895158125,2.86,180.82,180.7,5.6291]
[1734895159522,2.86,180.82,180.7,2.86]
[1734895159826,2.86,180.82,180.68,1.5965]
[1734895160026,2.86,180.82,180.69,2.86]
[1734895160326,37.10998902,180.82,180.69,2.86]
[1734895161417,37.10998902,180.82,180.68,1.5965]
[1734895161418,37.10998902,180.82,180.66,39.85968902]
[1734895161622,37.10998902,180.82,180.66,41.58698902]
[1734895162023,37.10998902,180.82,180.67,2.7694]
[1734895162228,37.10998902,180.82,180.66,38.81728902]
[1734895162530,2.84,180.81,180.69,34.24998902]
[1734895163029,2.84,180.81,180.71,2.7689]
[1734895163225,34.24998902,180.85,180.72,6.1972]
[1734895163226,2.84,180.84,180.72,6.1972]
[1734895167126,2.84,180.83,180.69,34.24998902]
[1734895167328,2.84,180.82,180.67,6.298]
[1734895168132,21.18349182,180.81,180.67,6.298]
[1734895172232,21.18349182,180.81,180.67,9.0675]
[1734895172430,2.84,180.8,180.67,30.25099182]
[1734895174832,2.84,180.8,180.67,3.458]
[1734895175036,5.077,180.79,180.67,3.458]
[1734895175228,21.18349182,180.78,180.65,76.80925786]
[1734895175432,21.18349182,180.75,180.65,76.80925786]
[1734895175631,2.84,180.74,180.65,76.80925786]
[1734895176029,2.84,180.74,180.62,2.84]
[1734895176230,2.84,180.74,180.56,5.1385]
[1734895176437,2.84,180.74,180.59,2.84]
[1734895178237,34.45600887,180.73,180.59,2.84]
[1734895179643,34.45600887,180.76,180.59,37.29600887]
[1734895179847,2.84,180.76,180.62,34.45600887]
[1734895180142,2.84,180.76,180.63,1.6638]
[1734895180343,2.84,180.76,180.64,8.9969]
[1734895181246,34.45600887,180.7,180.58,0.22538]
[1734895181542,7.9152,180.69,180.58,0.22538]
[1734895181945,34.45600887,180.63,180.58,0.22538]
[1734895182139,2.84,180.62,180.58,0.22538]
[1734895182349,34.45600887,180.6,180.55,109.37569375]
[1734895182545,34.45600887,180.6,180.47,4.5679]
[1734895184137,2.86,180.59,180.47,4.5679]
[1734895184344,2.86,180.58,180.47,7.3405]
[1734895186559,34.45600887,180.57,180.43,2.25614609]
[1734895186845,2.86,180.56,180.44,4.9306]
[1734895190650,34.45600887,180.57,180.44,4.9306]
[1734895190853,2.86,180.57,180.44,39.38660887]
[1734895191846,37.31600887,180.57,180.44,4.9306]
[1734895198062,2.86,180.56,180.44,4.9306]
[1734895200862,34.45600887,180.57,180.44,4.9306]
[1734895201061,2.86,180.56,180.44,4.9306]
[1734895202459,2.86,180.55,180.44,4.9306]
[1734895202757,34.45600887,180.57,180.44,7.7036]
[1734895202956,39.00740887,180.6,180.44,39.38660887]
[1734895203265,4.5514,180.6,180.44,39.38660887]
[1734895203454,34.45600887,180.57,180.45,2.86]
[1734895203658,34.45600887,180.57,180.44,4.9306]
[1734895203878,34.45600887,180.54,180.44,3.3349]
[1734895204163,2.86,180.53,180.43,2.25614609]
[1734895204360,6.3238,180.53,180.43,2.25614609]
[1734895204759,1.6046,180.52,180.43,2.25614609]
[1734895205361,34.45600887,180.48,180.43,2.25614609]
[1734895205658,2.86,180.47,180.43,2.25614609]
[1734895206156,2.86,180.47,180.3,5.0398]
[1734895206157,1.6964,180.46,180.3,5.0398]
[1734895206359,34.45600887,180.45,180.3,1.7657]
[1734895206556,36.14110887,180.45,180.3,4.6257]
[1734895206757,2.86,180.44,180.31,2.7751]
[1734895206963,2.86,180.44,180.33,34.45600887]
[1734895207468,4.5451,180.45,180.33,34.45600887]
[1734895208365,1.6046,180.52,180.36,34.65031887]
[1734895208565,2.86,180.51,180.39,34.45600887]
[1734895208764,2.86,180.51,180.4,4.5491]
[1734895209363,37.31600887,180.51,180.4,1.6891]
[1734895209564,1.6046,180.52,180.4,1.6891]
[1734895209768,1.6851,180.56,180.43,34.45600887]
[1734895209968,4.4936,180.62,180.46,37.22870887]
[1734895210266,1.7622,180.61,180.47,6.3359]
[1734895210466,1.7622,180.61,180.47,8.025]
[1734895210666,1.7622,180.61,180.48,2.86]
[1734895211464,1.6657,180.6,180.48,2.86]
[1734895213067,1.6657,180.6,180.49,34.45600887]
[1734895213671,1.7622,180.61,180.49,34.45600887]
[1734895215569,1.7622,180.61,180.52,34.45600887]
[1734895215767,1.7622,180.61,180.53,2.86]
[1734895218066,1.6336,180.62,180.53,2.86]
[1734895218272,1.6336,180.62,180.52,34.45600887]
[1734895218475,1.6336,180.62,180.53,2.86]
[1734895219375,88.26023236,180.65,180.53,2.86]
[1734895219773,88.26023236,180.65,180.54,2.7715]
[1734895220072,6.1425,180.67,180.55,34.45600887]
[1734895220275,3.2825,180.67,180.55,37.22740887]
[1734895220774,3.2825,180.67,180.55,34.45600887]
[1734895220962,3.2825,180.67,180.55,37.86310887]
[1734895221567,3.2825,180.67,180.58,34.45600887]
[1734895221769,4.15771856,180.71,180.58,34.45600887]
[1734895221770,2.84,180.72,180.59,2.84]
[1734895222175,2.84,180.72,180.6,2.7706]
[1734895222675,2.84,180.72,180.59,2.84]
[1734895223379,9.07481856,180.74,180.59,2.84]
[1734895223573,2.84,180.73,180.61,34.45600887]
[1734895223870,3.3199,180.74,180.64,34.45600887]
[1734895224079,3.3199,180.74,180.65,2.84]
[1734895225584,2.84,180.77,180.65,2.84]
[1734895225777,2.84,180.77,180.65,4.5779]
[1734895225978,2.84,180.77,180.66,3.367]
[1734895227481,2.84,180.77,180.54,293.45600887]
[1734895227482,2.84,180.77,180.49,89.87679456]
[1734895227783,6.99521774,180.77,180.6,34.45600887]
[1734895227978,6.99521774,180.77,180.61,2.84]
[1734895228174,2.84,180.77,180.61,2.84]
[1734895228377,6.99574184,180.77,180.63,34.45600887]
[1734895229180,2.84,180.77,180.63,34.45600887]
[1734895229682,34.45600887,180.75,180.57,34.45600887]
[1734895229978,34.45600887,180.72,180.57,34.45600887]
[1734895230178,4.4442,180.71,180.57,34.45600887]
[1734895230379,2.84,180.7,180.57,34.45600887]
[1734895230581,6.1888,180.7,180.57,34.45600887]
[1734895230979,34.45600887,180.69,180.54,37.29600887]
[1734895231283,6.1888,180.7,180.54,37.29600887]
[1734895231284,34.45600887,180.66,180.54,2.84]
[1734895231483,2.84,180.65,180.54,2.84]
[1734895232180,2.84,180.65,180.47,34.45600887]
[1734895232483,2.84,180.65,180.48,2.84]
[1734895233282,2.84,180.65,180.5,34.45600887]
[1734895234080,6.99873772,180.65,180.5,34.45600887]
[1734895234283,2.84,180.65,180.5,34.45600887]
[1734895234990,2.84,180.68,180.53,34.45600887]
[1734895235180,2.84,180.68,180.54,7.3254]
[1734895235582,2.84,180.68,180.56,34.45600887]
[1734895236484,2.84,180.68,180.56,37.22710887]
[1734895237275,2.84,180.68,180.57,2.84]
[1734895238682,2.84,180.68,180.55,6.2063]
[1734895239284,0.88883848,180.67,180.55,6.2063]
[1734895239482,2.84,180.68,180.55,6.2063]
[1734895240677,2.84,180.68,180.55,3.3663]
[1734895240882,2.84,180.68,180.55,1.6782]
[1734895241089,34.45600887,180.66,180.54,1.714]
[1734895241284,34.45600887,180.66,180.51,4.6054]
[1734895241483,0.88814548,180.65,180.51,4.6054]
[1734895242178,34.45600887,180.66,180.51,4.6054]
[1734895242381,0.88766027,180.65,180.51,4.6054]
[1734895242785,34.45600887,180.66,180.51,4.6054]
[1734895242989,34.45600887,180.63,180.48,3.4258]
[1734895243187,34.45600887,180.6,180.48,6.2658]